Cogmind - Beta 14 @@@ ROGUE MODE // 2025.03.24 @ 18:07:46 Player: CLown Bot Result: Destroyed by G-47 Trooper with Particle Gun Performance ------------- Evolutions (2) 1000 Regions Visited (4) 800 Robots Destroyed (9) 45 Value Destroyed (264) 264 Prototype IDs (3) 60 Alien Tech Used (0) 0 Bonus (200) 200 TOTAL SCORE: 2369 Bonus ------- Follower Combat Kills 200 Cogmind --------- Core Integrity 0/550 Matter 219/300 Energy 140/140 System Corruption 0% Temperature Cool (9) Movement Core (100) Ox1 Location -8/Materials Parts ------- > --- POWER (1) -------- Light Deuterium Engine > --- PROPULSION (3) --- (None) > --- UTILITY (4) ------ (None) > --- WEAPON (3) ------- (None) > --- INVENTORY (5) ---- Light Treads ECM Suite Peak State ------------ > --- POWER ------------ Light Angular Momentum Engine > --- PROPULSION ------- Light Treads Light Treads Carbon-fiber Leg > --- UTILITY ---------- Improved Heat Sink Small Storage Unit Backup Plating I > --- WEAPON ----------- Advanced Beam Rifle Mining Laser Heavy Flail > --- INVENTORY -------- Backup Power I Light Treads Aluminum Leg Aluminum Leg ECM Suite Light Assault Rifle Improved Light Cannon Mining Laser [Rating: 23] Favorites ----------- Power Ion Engine Engine Ion Engine Propulsion Light Treads Treads Light Treads Leg Carbon-fiber Leg Utility Small Storage Unit Device Improved Heat Sink Storage Small Storage Unit Protection Backup Plating I Weapon Assault Rifle Energy Gun Advanced Beam Rifle Ballistic Gun Assault Rifle Ballistic Cannon Flak Cannon Special Weapon Mining Laser Impact Weapon Heavy Flail Build | -11 -10 -10 -9 -8 ------- Run | Yrd Mat Min Mat Mat Slots Evolved 4 | . . . 2 2 Power . | . . . . . Propulsion 1 | . . . . 1 Utility 2 | . . . 1 1 Weapon 1 | . . . 1 . Parts Attached 23 | 2 4 . 1 16 Power 3 | 1 . . . 2 Engine 3 | 1 . . . 2 Core . | . . . . . Reactor . | . . . . . Propulsion 6 | 1 1 . . 4 Treads 3 | 1 1 . . 1 Leg 3 | . . . . 3 Wheel . | . . . . . Hover . | . . . . . Flight . | . . . . . Utility 2 | . 1 . . 1 Device 1 | . . . . 1 Storage 1 | . 1 . . . Processor . | . . . . . Hackware . | . . . . . Protection . | . . . . . Artifact . | . . . . . Weapon 12 | . 2 . 1 9 Energy Gun 2 | . . . . 2 Energy Cannon . | . . . . . Ballistic Gun 3 | . 2 . . 1 Ballistic Cannon 2 | . . . . 2 Launcher . | . . . . . Special Weapon 4 | . . . 1 3 Impact Weapon 1 | . . . . 1 Slashing Weapon . | . . . . . Piercing Weapon . | . . . . . Special Melee Weapon . | . . . . . Unidentified Prototypes 1 | . . . . 1 Parts Lost 16 | . . . . 16 Power 2 | . . . . 2 Propulsion 5 | . . . . 5 Utility 2 | . . . . 2 Weapon 7 | . . . . 7 Highest Loss Streak 10 | . . . . 10 To Critical Strikes 1 | . . . . 1 Average Slot Usage (%) 64 | . 53 85 74 56 Engine 9 | . 14 14 11 5 Treads 18 | . 18 28 22 13 Leg 1 | . . . . 3 Device 1 | . . . . 2 Storage 8 | . 4 14 11 7 Protection 1 | . . . . 2 Energy Gun 2 | . . . . 6 Ballistic Gun 12 | . 14 28 22 2 Special Weapon 5 | . . . 8 6 Impact Weapon 1 | . . . . 3 Peak Build Rating 23 | 2 6 6 7 23 Average Rating 8 | 1 3 6 6 11 On Entrance 4 | . 2 6 6 7 Naked Turns 34 | . . . . 34 Heaviest Build 25 | 5 13 13 14 25 Greatest Support 60 | 20 40 40 40 60 Greatest Overweight (x) 1 | 1 . . . 1 Average Overweight (x) . | . . . . . Largest Inventory Capacity 8 | 5 8 8 8 8 Average Capacity 7 | 5 6 8 8 7 Most Carried 8 | 5 5 6 7 8 Average Carried 6 | 4 3 4 6 6 Final Capacity 8 | 5 8 8 8 5 Final Carried 7 | 5 4 6 7 2 Class Distribution -------------------- 64% | Mutant 35% | Gunner Dominant Class ---------------- Mutant | -10/Materials Mutant | -10/Mines Gunner | -9/Materials Mutant | -8/Materials Resources | -11 -10 -10 -9 -8 ----------- Run | Yrd Mat Min Mat Mat Matter Collected 418 | 146 . 52 152 68 Remotely . | . . . . . Salvage Created 319 | . 32 86 15 186 Parts 18 | . 3 6 2 7 Haulers Intercepted . | . . . . . Recyclers Shooed . | . . . . . Parts Field Recycled . | . . . . . Retrieved Matter . | . . . . . Parts Self-Destructed . | . . . . . Prevented . | . . . . . Kills | -11 -10 -10 -9 -8 ------- Run | Yrd Mat Min Mat Mat Combat Hostiles Destroyed 8 | . 1 2 1 4 Guns 8 | . 1 2 1 4 Classes Destroyed 4 | . 1 2 . 1 Recycler 1 | . . 1 . . Swarmer 3 | . . 2 1 . Grunt 3 | . 1 . . 2 Sentry 2 | . . . . 2 Best Kill Streak 2 | . 1 2 1 2 Combat Bots Only 2 | . 1 2 1 2 Max Kills in Single Turn 2 | . 1 2 1 1 Gunslinging 1 | . . 1 . . Exploded . | . . . . . Melee . | . . . . . Uniques/NPCs Destroyed . | . . . . . Combat | -11 -10 -10 -9 -8 -------- Run | Yrd Mat Min Mat Mat Hostile Shots Fired 217 | . 9 6 24 178 Missed 71 | . 2 3 10 56 Damage Taken 2168 | . 75 25 151 1917 Core 568 | . . 9 6 553 Absorbed by Shields . | . . . . . Regen/Repaired (Parts) 40 | . . . . 40 Core Remaining (%) 98 | 100 . 96 98 . Volleys Fired 58 | . 8 2 14 34 Largest 3 | . 2 2 2 3 Hottest 161 | . 40 40 40 161 Shots Fired 95 | . 16 4 28 47 Gun 83 | . 16 4 28 35 Cannon 8 | . . . . 8 Launcher . | . . . . . Special 4 | . . . . 4 Kinetic 60 | . 16 4 28 12 Thermal 35 | . . . . 35 Explosive . | . . . . . Electromagnetic . | . . . . . Robot Hit Streak 9 | . 3 2 8 9 Robot Miss Streak 6 | . 2 2 4 6 Penetration Max . | . . . . . Secondary Targets 1 | . . 1 . . Max Gunslinging Chain 1 | . . 1 . . Shots Hit Robots 51 | . 8 2 15 26 Core Hits 19 | . 3 2 4 10 Critical Kills . | . . . . . Critical Parts Destroyed . | . . . . . Critical Strikes . | . . . . . Melee Attacks 1 | . . . . 1 Impact 1 | . . . . 1 Slashing . | . . . . . Piercing . | . . . . . Sneak Attacks . | . . . . . Combat Hostiles . | . . . . . Follow-up Attacks . | . . . . . Damage Inflicted 768 | . 71 34 152 511 Guns 591 | . 71 34 152 334 Cannons 153 | . . . . 153 Explosions . | . . . . . Melee . | . . . . . Ramming . | . . . . . Kinetic 424 | . 71 34 152 167 Thermal 344 | . . . . 344 Explosive . | . . . . . Electromagnetic . | . . . . . Impact . | . . . . . Slashing . | . . . . . Piercing . | . . . . . Highest Corruption . | . . . . . Average Corruption . | . . . . . Corruption Purged . | . . . . . Corruption Blocked . | . . . . . Overload Shots . | . . . . . Overflow Damage . | . . . . . Projectiles . | . . . . . Explosions . | . . . . . Melee . | . . . . . Knockbacks 5 | . . . . 5 Impact . | . . . . . Kinetic 4 | . . . . 4 Secondary 1 | . . . . 1 Self-Inflicted Damage . | . . . . . Shots . | . . . . . Rammed . | . . . . . Targets Rammed 1 | . . 1 . . Kicked . | . . . . . Crushed 1 | . . 1 . . Highest Temperature 27 | . 6 . 4 27 Average Temperature 7 | . 6 . 2 8 Received Heat Transfer 615 | . 42 . 51 522 Siege Activations . | . . . . . Robots Corrupted . | . . . . . Combat Hostiles . | . . . . . Parts Fried . | . . . . . Impact Corruptions . | . . . . . Robots Melted . | . . . . . Combat Hostiles . | . . . . . Parts Melted 1 | . . . . 1 Heat Transferred 642 | . . . . 642 Parts Sabotaged . | . . . . . Parts Stolen . | . . . . . Parts Stripped . | . . . . . Power Chain Reactions . | . . . . . Alert | -11 -10 -10 -9 -8 ------- Run | Yrd Mat Min Mat Mat Peak Influence 250 | . 20 62 241 250 Initial 24 | . . 7 24 . Average 90 | . 4 56 115 109 Maximum Alert Level 1 | . . . 1 1 Low Security (%) 82 | 100 100 100 96 62 Level 1 17 | . . . 3 37 Level 2 . | . . . . . Level 3 . | . . . . . Level 4 . | . . . . . Level 5 . | . . . . . High Security . | . . . . . Max Security . | . . . . . Squads Dispatched 5 | . . . 2 3 Investigation 2 | . . . 1 1 Extermination . | . . . . . Reinforcement 3 | . . . 1 2 Assault . | . . . . . Garrison . | . . . . . Intercept . | . . . . . Searches Triggered . | . . . . . Construction Impeded . | . . . . . Haulers Reinforced . | . . . . . Active Scanning Responses . | . . . . . Cargo Convoy Interrupts . | . . . . . Stealth | -11 -10 -10 -9 -8 --------- Run | Yrd Mat Min Mat Mat Distress Signals 3 | . 1 . 1 1 Communications Jammed . | . . . . . Distress Signals . | . . . . . Times Spotted 38 | . 2 3 10 23 Peak Tracking Total 8 | . 2 3 3 8 Tactical Retreats 2 | . . . 1 1 Traps | -11 -10 -10 -9 -8 ------- Run | Yrd Mat Min Mat Mat Traps Triggered 2 | . . . 1 1 Indirectly . | . . . . . Trap Hack Attempts . | . . . . . Triggered . | . . . . . Disarmed . | . . . . . Reprogrammed . | . . . . . Reused . | . . . . . Traps Extracted . | . . . . . Installed . | . . . . . Triggered . | . . . . . Machines | -11 -10 -10 -9 -8 ---------- Run | Yrd Mat Min Mat Mat Machines Disabled 1 | . . . . 1 Max in Single Turn 1 | . . . . 1 Machines Repaired . | . . . . . Machines Dismantled . | . . . . . Machines Sabotaged . | . . . . . Overloaded Fab Kills . | . . . . . Hacking | -11 -10 -10 -9 -8 --------- Run | Yrd Mat Min Mat Mat Machines Accessed 7 | . . . 3 4 Terminals 6 | . . . 3 3 Fabricators . | . . . . . Repair Stations 1 | . . . . 1 Recycling Units . | . . . . . Scanalyzers . | . . . . . Garrison Access . | . . . . . Total Hacks 15 | . . . 6 9 Successful 6 | . . . 2 4 Failed 9 | . . . 4 5 Catastrophic 2 | . . . 1 1 Database Lockouts . | . . . . . Manual 10 | . . . 5 5 Terminals 11 | . . . 6 5 Fabricators . | . . . . . Repair Stations 4 | . . . . 4 Recycling Units . | . . . . . Scanalyzers . | . . . . . Garrison Access . | . . . . . Terminal Hacks 3 | . . . 2 1 Prototype ID Bank 1 | . . . . 1 Alert Level 1 | . . . 1 . Unreport Threat 1 | . . . 1 . Fabricator Hacks . | . . . . . Repair Station Hacks 3 | . . . . 3 Scan Component 1 | . . . . 1 Repair 1 | . . . . 1 Refit 1 | . . . . 1 Recycling Unit Hacks . | . . . . . Scanalyzer . | . . . . . Garrison Access Hacks . | . . . . . Unauthorized Hacks . | . . . . . Terminals . | . . . . . Fabricators . | . . . . . Repair Stations . | . . . . . Recycling Units . | . . . . . Scanalyzers . | . . . . . Garrison Access . | . . . . . Data Cores Recovered . | . . . . . Used . | . . . . . Hacking Detections 6 | . . . 3 3 Full Trace Events 3 | . . . 1 2 Feedback Events . | . . . . . Feedback Blocked . | . . . . . Robot Schematics Acquired . | . . . . . Robots Built . | . . . . . Authchips . | . . . . . Time . | . . . . . Total Robot Build Rating . | . . . . . Part Schematics Acquired . | . . . . . Parts Built . | . . . . . Authchips . | . . . . . Time . | . . . . . Total Part Build Rating . | . . . . . Parts Repaired 1 | . . . . 1 Time 26 | . . . . 26 Parts Recycled . | . . . . . Recycled Matter . | . . . . . Retrieved Matter . | . . . . . Retrieved Components . | . . . . . Parts Scanalyzed . | . . . . . Part Schematics Acquired . | . . . . . Parts Damaged . | . . . . . Bothacking | -11 -10 -10 -9 -8 ------------ Run | Yrd Mat Min Mat Mat Used RIF Installer . | . . . . . Robots Hacked . | . . . . . Non-combat . | . . . . . Combat . | . . . . . Robot Hacks Applied . | . . . . . Relay Couplers Released . | . . . . . Fabnet Peak Effective % . | . . . . . Robots Rewired . | . . . . . Allies Hacked . | . . . . . Hacks Repelled . | . . . . . Allies | -11 -10 -10 -9 -8 -------- Run | Yrd Mat Min Mat Mat Total Allies 1 | . . 1 . . Largest Group 1 | . . 1 1 1 Highest-Rated Group 31 | . . 31 31 31 Highest-Rated Ally 31 | . . 31 31 31 Total Orders . | . . . . . Ally Attacks 32 | . . . 24 8 Total Damage 496 | . . . 412 84 Kills 14 | . . . 10 4 Allies Corrupted . | . . . . . Allies Melted . | . . . . . Intel | -11 -10 -10 -9 -8 ------- Run | Yrd Mat Min Mat Mat Robot Analysis Total . | . . . . . Derelict Logs Recovered . | . . . . . Drone Launches . | . . . . . Drone Recoveries . | . . . . . Exploration | -11 -10 -10 -9 -8 ------------- Run | Yrd Mat Min Mat Mat Turns Passed 1322 | 48 170 82 463 559 Spaces Moved 761 | 37 89 46 264 325 Core 89 | 18 . . . 71 Treads 589 | 19 89 46 264 171 Legs 83 | . . . . 83 Wheels . | . . . . . Hover . | . . . . . Flight . | . . . . . Fastest Speed 50 | 50 160 160 160 50 Average Speed 147 | 111 160 160 160 136 Slowest Speed 190 | 160 160 160 160 190 Overloaded Moves . | . . . . . Propulsion Burnouts . | . . . . . Robots Hopped . | . . . . . Cave-ins Triggered . | . . . . . Exploration Rate (%) 19 | 3 22 21 21 32 Regions Visited 4 Branch Regions 1 Pre-discovered Areas 1 | . . 1 . . Known Exits Taken . | . . . . . Unknown Exits Taken 4 | 1 1 1 1 . Scrap Searched . | . . . . . Spaces Dug 2 | . . . . 2 Terrain Destroyed 2 | . . . . 2 Melee . | . . . . . Projectile 2 | . . . . 2 AOE . | . . . . . Terrain Rammed . | . . . . . Walls Destroyed . | . . . . . Machines Disabled . | . . . . . Actions | -11 -10 -10 -9 -8 --------- Run | Yrd Mat Min Mat Mat Total 859 | 43 102 50 280 384 Wait . | . . . . . Move 757 | 36 88 45 263 325 Hop . | . . . . . Pick Up 16 | 5 2 2 2 5 Fast Attach 7 | 2 1 . . 4 Attach 11 | . 3 . 1 7 Detach . | . . . . . Swap 5 | . . . . 5 Drop 3 | . . . . 3 Fire 58 | . 8 2 14 34 Melee 1 | . . . . 1 Ram . | . . . . . Kick . | . . . . . Crush 1 | . . 1 . . Escape Stasis . | . . . . . Rewire . | . . . . . Trap . | . . . . . Miscellaneous . | . . . . . Route ------- -11/Scrapyard -10/Materials -10/Mines -9/Materials -8/Materials History --------- Turn | Location | Event 15 | -11/Scrapyard | Discovered new exit (range 16) 49 | -11/Scrapyard | Entered Materials 182 | -10/Materials | Discovered new exit (range 16) 219 | -10/Materials | Entered Mines 225 | -10/Mines | Escorted by a lone wolf Derelict 247 | -10/Mines | Learned location of Storage (-9) 276 | -10/Mines | Discovered new exit (range 7) 301 | -10/Mines | Entered Materials 301 | -9/Materials | Accompanied by 1 ally 301 | -9/Materials | Evolved 2 slots: Utility x1, Weapon x1 311 | -9/Materials | Build established: Mutant 724 | -9/Materials | Build established: Gunner 758 | -9/Materials | Discovered new exit (range 5) 764 | -9/Materials | Entered another Materials area 764 | -8/Materials | Accompanied by 1 ally 764 | -8/Materials | Evolved 2 slots: Propulsion x1, Utility x1 1051 | -8/Materials | Repaired Grenade Launcher? 1195 | -8/Materials | Build established: Mutant 1255 | -8/Materials | Core integrity fell below 50% 1285 | -8/Materials | Lost 10 parts (1p2n2u5w) 1301 | -8/Materials | Core integrity fell below 20% 1323 | -8/Materials | Destroyed by G-47 Trooper with Particle Gun Last Messages --------------- Imp. Light Cannon destroyed. Flak Cannon destroyed. Sml. Storage Unit destroyed. X-57 Shotgunner destroyed. Knocked back. K-01 Serf collects debris. Acquired 13 matter. Lgt. Assault Rifle destroyed. Knocked back. Mining Laser destroyed. Penetrated by Slug. Imp. Heat Sink destroyed. K-01 Serf collects debris. K-01 Serf destroyed. Acquired 8 matter. Critical hit (Burn: +37). M-13 Machinist repairs X-57 Shotgunner. Atomic Centrifuge disabled. Aluminum Leg destroyed. Acquired Lgt. Deuterium Engine. Map ----- +----------------------------------------------------+ | | | | | | | | | ??????????????????????????????????????????????? | | ?????????????##########???????????????????????? | | ?????????????# #???????????????????????? | | ?????????????# """ #???????????????????????? | | ?????????????# """ #???????????????????????? | | ?????????????# """ #???????????????????????? | | ?????????????# #???????????????????????? | | ?????????????# """ #???????????????????????? | | ?????????????# """ #???????????????????????? | | ?????????????# = " " #???????????????????????? | | ?????????????# #???????????????????????? | | ?????????????#####/#########??????????????????? | | #???????????????# # ""???????????????? | | ???????????#### + """??????????????? | | """??????????# # """??????????????? | | ""???????????# ######g#??????????????????? | | "????????????# #????#g#??????????????????? | | ?????????????# #??###/#??????????????????? | | ############## #??# #??????????????????? | | #??# |#??????????????????? | | #??# #??????????????????? | | #??# @ #??????????????????? | | ""##"################??# #??????????????????? | | ###?????????????????# #??????????????????? | | ""#?????????????????# #??????????????????? | | T"#?????????????????##+##??????????????????? | | "" ""#?????????????????? ????????????????????? | | "" ###?????????????????? ????????????????????? | | T" #???????????????????? ????????????????????? | | "" #????????????????????#+????????????????????? | | "" #??????????????????????????????????????????? | | #??????????????????????????????????????????? | | ####??????????????????????????????????????????? | | #???????????????????????????????????????????? | | #???????????????????????????????????????????? | | #???????????????????????????????????????????? | | #???????????????????????????????????????????? | | #???????????????????????????????????????????? | | #???????????????????????????????????????????? | | #???????????????????????????????????????????? | | #???????????????????????????????????????????? | | ########??????????????????????????????????????? | | ????????????????????????????????????? | | ????????????????????????????????????? | | ????????????????????????????????????? | | #########?????????????????????????????????????? | +----------------------------------------------------+ Best States ------------- Heat Dissipation 45 Energy Generation 18 Energy Capacity 250 Matter Stores 300 Matter Capacity 300 Sight Range 16 Terrain Scan Density 10 Armor Coverage 80 Evasion (%) 55 Recoil Reduction 3 Item Schematics ----------------- None Robot Schematics ------------------ None Fabricated ------------ Nothing Alien Tech Used ----------------- None Achievements -------------- Part-time Mechanic Challenges ------------ None Game ------ Seed LayeredCoolingLoader Manual? 0 Play Time 00:19:45 Cumulative 2.3 hours Start 2025.03.24 @ 17:50:13 End 2025.03.24 @ 18:07:46 Sessions 1 Manual Loads 0 Difficulty Rogue Special Mode None Game No. 9 Rogue 9 Adventurer 0 Explorer 0 Win Type - Total 0 Types 0/0/0/0/0/0/0/0/0 Lore% 0 Gallery% 6 Achievement% 5 Wizard Run 0 Options --------- Layout 1 ASCII 0 Keyboard 0 Movement Mouse Keybinds 0 Fullscreen 2 Font 24/Smallcaps Map View 50x35 Zoom Use 0% Tactical HUD 0 Map Filters NONE Filters NONE Steam 1 RUN: 68f6f8a6-5444-4293-bee6-2c3bbe97c6a8